bitfinex-derivatives/quotes_SOLF0:USTF0_20250325
["timestamp","ask_amount","ask_price","bid_price","bid_amount"]
[1742899862461,0.04645102,142.71,142.69,7.007]
[1742899862860,0.04645102,142.71,142.68,0.05078672]
[1742899863267,7.0069,142.7,142.68,0.05078672]
[1742899863666,0.04645102,142.71,142.68,0.05078672]
[1742899864167,0.04645102,142.71,142.7,7.0068]
[1742899866465,0.04645102,142.71,142.69,32.2071]
[1742899866866,0.04645102,142.71,142.69,25.2]
[1742899867367,7.0072,142.7,142.68,0.05078672]
[1742899867667,0.04645102,142.71,142.68,0.05078672]
[1742899867965,7.0072,142.7,142.68,0.05078672]
[1742899868967,0.04645102,142.71,142.68,0.05078672]
[1742899869465,7.05305102,142.71,142.68,0.05078672]
[1742899869666,0.04645102,142.71,142.68,0.05078672]
[1742899870568,7.0071,142.7,142.68,0.05078672]
[1742899871472,7.0073,142.69,142.68,0.05078672]
[1742899872968,7.0071,142.7,142.68,0.05078672]
[1742899873569,0.04645102,142.71,142.68,0.05078672]
[1742899874273,7.05305102,142.71,142.68,0.05078672]
[1742899874968,0.04645102,142.71,142.68,0.05078672]
[1742899876070,0.04645102,142.71,142.7,7.0068]
[1742899876770,0.04645102,142.71,142.69,7.007]
[1742899877971,0.04645102,142.71,142.68,7.05848672]
[1742899878276,0.04645102,142.71,142.68,0.05078672]
[1742899878679,7.0071,142.7,142.68,0.05078672]
[1742899880974,0.04645102,142.71,142.68,0.05078672]
[1742899881379,0.04645102,142.71,142.69,7.007]
[1742899881881,0.04645102,142.71,142.68,0.05078672]
[1742899881882,0.04645102,142.71,142.7,7.0068]
[1742899882983,0.04645102,142.71,142.69,7.0071]
[1742899883885,0.04645102,142.71,142.7,7.0068]
[1742899888102,22.29221605,142.81,142.73,7.0049]
[1742899888582,7.0036,142.77,142.74,7.0048]
[1742899889280,7.004,142.76,142.74,0.05168791]
[1742899889979,7.04879832,142.77,142.74,7.05648791]
[1742899890180,0.04509832,142.77,142.74,0.05168791]
[1742899890382,7.0044,142.75,142.74,0.05168791]
[1742899893687,7.0039,142.76,142.74,0.05168791]
[1742899893889,0.04509832,142.77,142.74,0.05168791]
[1742899894289,7.0044,142.75,142.74,0.05168791]
[1742899894489,8.33361437,142.77,142.68,25.2]
[1742899894689,7.0057,142.73,142.69,7.007]
[1742899894987,8.28851605,142.77,142.66,365.0]
[1742899895188,8.28851605,142.75,142.66,365.0]
[1742899895389,7.0066,142.71,142.67,7.008]
[1742899895586,7.0066,142.71,142.69,0.05150366]
[1742899896388,7.0068,142.7,142.69,0.05150366]
[1742899897988,7.0068,142.7,142.65,25.2]
[1742899897989,7.0087,142.67,142.61,390.2]
[1742899898179,8.28851605,142.73,142.61,390.2]
[1742899898385,8.28851605,142.71,142.6,34.88541153]
[1742899898580,7.0096,142.65,142.61,7.0109]
[1742899898779,8.28851605,142.7,142.61,7.0109]
[1742899899187,7.0096,142.65,142.64,0.04596569]
[1742899899389,8.28851605,142.68,142.6,7.0115]
[1742899899586,0.05205359,142.66,142.63,0.0534599]
[1742899899888,7.01,142.64,142.63,0.0534599]
[1742899900981,7.0095,142.65,142.63,0.0534599]
[1742899901182,0.05205359,142.66,142.63,0.0534599]
[1742899901590,7.0095,142.65,142.63,0.0534599]
[1742899903095,0.05205359,142.66,142.63,0.0534599]
[1742899903891,0.05205359,142.66,142.65,7.0093]
[1742899906993,0.05205359,142.66,142.63,0.0534599]
[1742899907597,7.06115359,142.66,142.63,0.0534599]
[1742899909600,7.0094,142.65,142.63,0.0534599]
[1742899909793,0.05205359,142.66,142.63,0.0534599]
[1742899910198,7.0093,142.65,142.63,0.0534599]
[1742899911292,0.05205359,142.66,142.63,0.0534599]
[1742899912103,0.05205359,142.66,142.63,7.0634599]
[1742899912595,7.06085359,142.66,142.63,7.0634599]
[1742899914201,7.06085359,142.66,142.63,0.0534599]
[1742899915303,7.06085359,142.66,142.63,7.0636599]
[1742899916102,7.06085359,142.66,142.63,0.0534599]
[1742899916602,7.0093,142.65,142.63,0.0534599]
[1742899919597,0.05205359,142.66,142.63,0.0534599]
[1742899919803,126.31389559,142.77,142.63,0.0534599]
[1742899919993,114.32808279,142.77,142.65,25.2]
[1742899920192,106.03956674,142.77,142.65,33.48851605]
[1742899920396,106.03956674,142.77,142.68,33.48851605]
[1742899920899,106.03956674,142.77,142.74,7.0046]
[1742899921399,106.09013013,142.77,142.74,7.05778877]
[1742899921605,0.05056339,142.77,142.74,7.05778877]
[1742899921797,0.05056339,142.77,142.74,0.05318877]
[1742899922398,7.0042,142.76,142.74,0.05318877]
[1742899923002,0.05056339,142.77,142.74,0.05318877]
[1742899924399,7.0044,142.75,142.74,0.05318877]
[1742899925700,7.004,142.76,142.74,0.05318877]
[1742899926304,7.05416339,142.77,142.74,0.05318877]
[1742899927608,7.004,142.76,142.74,0.05318877]
[1742899928000,0.05056339,142.77,142.74,0.05318877]
[1742899928205,7.0044,142.75,142.74,0.05318877]
[1742899928707,0.05056339,142.77,142.74,0.05318877]
[1742899930009,0.05056339,142.77,142.75,7.0041]
[1742899933410,0.05056339,142.77,142.76,7.0039]
[1742899933605,12.98959862,142.88,142.74,0.05318877]
[1742899933911,42.03454646,142.9,142.79,7.0021]
[1742899934505,42.03454646,142.9,142.76,25.2]
[1742899934811,0.05242796,142.84,142.76,25.2]
[1742899935007,0.05242796,142.84,142.79,0.05127886]
[1742899935311,7.0016,142.81,142.79,0.05127886]
[1742899936510,0.05242796,142.84,142.79,0.05127886]
[1742899937006,7.0012,142.82,142.79,0.05127886]
[1742899937510,0.05242796,142.84,142.79,0.05127886]
[1742899938110,7.0009,142.83,142.79,0.05127886]
[1742899938411,0.05242796,142.84,142.79,0.05127886]
[1742899939409,0.05242796,142.84,142.8,25.18]
[1742899940212,0.05242796,142.84,142.79,0.05127886]
[1742899940712,7.0019,142.8,142.79,0.05127886]
[1742899944516,0.04502308,142.81,142.79,0.05127886]
[1742899946015,13.9937,142.91,142.79,0.05127886]
[1742899946219,6.9999,142.85,142.81,7.0012]
[1742899946520,13.9937,142.91,142.81,7.0012]
[1742899947119,13.9937,142.91,142.8,7.0017]
[1742899947311,0.04430678,142.87,142.85,0.04516682]
[1742899947513,6.999,142.86,142.85,0.04516682]
[1742899950622,0.04430678,142.87,142.77,365.0]
[1742899950822,13.9955,142.89,142.77,365.0]
[1742899951217,7.0014,142.81,142.77,365.0]
[1742899951417,12.98959862,142.88,142.76,25.18]
[1742899951618,12.98959862,142.88,142.71,379.0121]
[1742899951619,13.997,142.87,142.71,379.0121]
[1742899951915,0.04749605,142.83,142.73,25.18]
[1742899952111,7.0026,142.79,142.78,0.05296977]
[1742899952316,7.0495493,142.79,142.78,0.05296977]
[1742899954613,0.0469493,142.79,142.78,0.05296977]
[1742899956028,7.0493493,142.79,142.78,0.05296977]
[1742899960920,0.0469493,142.79,142.78,0.05296977]
[1742899961525,7.0493493,142.79,142.78,0.05296977]
[1742899964127,7.0051,142.74,142.69,231.18]
[1742899964328,14.0032,142.81,142.67,365.0]
[1742899964527,14.0032,142.81,142.67,390.18]
[1742899964732,12.98959862,142.8,142.67,365.0]
[1742899965026,12.98959862,142.78,142.67,365.0]
[1742899965221,7.0067,142.71,142.67,372.0079]
[1742899965532,7.0067,142.71,142.68,0.04697341]
[1742899965724,0.04998472,142.7,142.68,0.04697341]
[1742899967029,0.04998472,142.7,142.68,7.05477341]
[1742899969028,0.04998472,142.7,142.68,0.04697341]
[1742899969528,7.0073,142.69,142.68,0.04697341]
[1742899970527,7.0091,142.66,142.58,0.12433388]
[1742899970923,12.98959862,142.72,142.58,0.12433388]
[1742899971424,12.98959862,142.72,142.6,7.0115]
[1742899971632,7.0095,142.65,142.64,0.04836117]
[1742899972229,7.05717677,142.66,142.64,0.04836117]
[1742899972628,7.0093,142.65,142.64,0.04836117]
[1742899973926,0.04837677,142.66,142.64,0.04836117]
[1742899974530,7.0093,142.65,142.64,0.04836117]
[1742899978136,7.0103,142.63,142.58,0.12433388]
[1742899978336,12.98959862,142.7,142.58,0.12433388]
[1742899978935,7.0096,142.65,142.61,7.0112]
[1742899979236,7.05701407,142.65,142.63,0.04697658]
[1742899979436,7.05701407,142.65,142.58,0.12433388]
[1742899979937,7.05701407,142.65,142.6,0.04713515]
[1742899980136,0.04741407,142.65,142.6,0.04713515]
[1742899980735,7.05671407,142.65,142.6,7.05873515]
[1742899981239,7.01,142.64,142.6,0.04713515]
[1742899982242,7.0104,142.63,142.6,0.04713515]
[1742899982941,7.0109,142.62,142.6,0.04713515]
[1742899983240,0.04741407,142.65,142.6,0.04713515]
[1742899983840,7.0112,142.61,142.6,0.04713515]
[1742899988944,7.0122,142.59,142.58,0.12433388]
[1742899989243,0.0506307,142.62,142.58,0.12433388]
[1742899990143,7.0616307,142.62,142.59,0.04419269]
[1742899992948,7.0113,142.61,142.59,0.04419269]
[1742899993553,7.0117,142.6,142.59,0.04419269]
[1742899994051,0.0506307,142.62,142.58,0.12433388]
[1742899994448,0.0506307,142.62,142.51,596.2]
[1742899994650,12.98959862,142.64,142.49,25.2]
[1742899995152,7.06056789,142.58,142.55,0.04776097]
[1742899995350,7.0131,142.58,142.54,7.0147]
[1742899995550,7.06151536,142.58,142.55,0.04502079]
[1742899996355,0.04841536,142.58,142.55,7.05892079]
[1742899996848,7.06131536,142.58,142.55,7.05892079]
[1742899997047,0.04841536,142.58,142.55,0.04502079]
[1742899997556,7.0134,142.57,142.55,0.04502079]
[1742899997853,7.06131536,142.58,142.55,0.04502079]
[1742899998055,7.06131536,142.58,142.55,7.05912079]
[1742899998648,0.04841536,142.58,142.55,7.05912079]
[1742899999147,0.04841536,142.58,142.56,7.0137]
[1742900000457,0.04841536,142.58,142.55,7.05892079]
[1742900000649,7.06121536,142.58,142.55,7.05892079]
[1742900002462,7.06121536,142.58,142.55,0.04502079]
[1742900002656,7.0132,142.57,142.55,0.04502079]
[1742900005762,7.0132,142.57,142.55,7.05922079]
[1742900006563,7.06141536,142.58,142.55,7.05922079]
[1742900007961,0.04841536,142.58,142.55,7.05922079]
[1742900008363,7.06141536,142.58,142.55,7.05922079]
[1742900008860,7.0132,142.57,142.55,0.04502079]
[1742900009258,0.04841536,142.58,142.55,0.04502079]
[1742900009960,7.0132,142.57,142.55,0.04502079]
[1742900010360,0.04841536,142.58,142.55,0.04502079]
[1742900010559,7.0137,142.56,142.55,0.04502079]
[1742900010758,0.04841536,142.58,142.55,0.04502079]
[1742900011165,7.0135,142.57,142.55,0.04502079]
[1742900011461,0.04841536,142.58,142.55,0.04502079]
[1742900011667,7.0095,142.65,142.57,25.7]
[1742900011868,106.03956674,142.66,142.57,25.7]
[1742900012769,0.05360645,142.63,142.6,0.05099892]
[1742900013265,0.05360645,142.63,142.62,7.0107]
[1742900015171,7.0079,142.68,142.64,7.0097]
[1742900015469,13.00487356,142.73,142.64,7.0097]
[1742900016070,13.00487356,142.73,142.65,7.0092]
[1742900016270,0.0474787,142.7,142.67,0.05188966]
[1742900017263,0.0474787,142.7,142.69,7.0073]
[1742900017470,0.0474787,142.7,142.67,0.05188966]
[1742900021068,7.0545787,142.7,142.67,0.05188966]
[1742900021371,0.0474787,142.7,142.59,25.64]
[1742900021574,7.0082,142.68,142.59,25.64]
[1742900021767,7.0082,142.68,142.62,7.0106]
[1742900021961,13.00487356,142.71,142.62,7.0106]
[1742900022366,13.00487356,142.71,142.61,7.011]
[1742900022565,0.05126805,142.68,142.65,0.05311444]
[1742900022780,7.0087,142.67,142.65,0.05311444]
[1742900023468,0.05126805,142.68,142.65,0.05311444]
[1742900023469,7.0088,142.66,142.65,0.05311444]
[1742900025369,7.0099,142.64,142.59,7.0121]
[1742900025572,13.00487356,142.69,142.57,365.0]
[1742900025777,13.00487356,142.67,142.56,25.6]
[1742900025972,7.011,142.62,142.58,7.0127]
[1742900026371,13.00487356,142.67,142.56,25.6]
[1742900026572,7.05711604,142.61,142.59,0.04492834]
[1742900026774,7.0116,142.61,142.59,0.04492834]
[1742900026975,7.05660312,142.61,142.59,0.04492834]
[1742900028180,7.0117,142.6,142.59,0.04492834]
[1742900035485,0.04500312,142.61,142.51,25.5]
[1742900035677,8.33180661,142.62,142.52,7.0154]
[1742900036287,7.014,142.56,142.52,7.0154]
[1742900036682,0.05059957,142.55,142.53,0.04630497]
[1742900038787,7.06479957,142.55,142.53,0.04630497]
[1742900038988,0.05059957,142.55,142.53,0.04630497]
[1742900039392,7.06499957,142.55,142.53,0.04630497]
[1742900040096,0.05059957,142.55,142.53,0.04630497]
[1742900040593,0.05059957,142.55,142.54,7.0147]
[1742900041698,8.33180661,142.66,142.54,32.48]
[1742900041906,8.33180661,142.66,142.54,25.46]
[1742900042196,7.0112,142.62,142.58,7.0125]
[1742900042589,0.05143669,142.61,142.59,0.0501901]
[1742900043695,7.06293669,142.61,142.59,0.0501901]
[1742900044501,0.05143669,142.61,142.59,0.0501901]
[1742900044702,7.0117,142.6,142.59,0.0501901]
[1742900048597,7.06303669,142.61,142.59,0.0501901]
[1742900049510,0.05143669,142.61,142.59,0.0501901]
[1742900050004,7.06293669,142.61,142.59,0.0501901]
[1742900050903,7.0117,142.6,142.59,0.0501901]
[1742900052207,7.06293669,142.61,142.59,0.0501901]
[1742900052807,7.0117,142.6,142.59,0.0501901]
[1742900053901,14.0134,142.71,142.6,7.0117]
[1742900054106,8.33180661,142.7,142.54,33.79180661]
[1742900054304,7.0097,142.65,142.54,398.79180661]
[1742900054505,8.33180661,142.7,142.62,7.0105]
[1742900054806,7.0087,142.67,142.62,7.0105]
[1742900055011,8.33180661,142.7,142.62,7.0105]
[1742900055311,0.05163244,142.66,142.63,0.04417914]
[1742900055608,7.0095,142.65,142.63,0.04417914]
[1742900056913,7.06073244,142.66,142.63,0.04417914]
[1742900057213,0.05163244,142.66,142.63,0.04417914]
[1742900057507,7.06073244,142.66,142.63,0.04417914]
[1742900057916,0.05163244,142.66,142.63,0.04417914]
[1742900058413,7.0093,142.65,142.63,0.04417914]
[1742900058713,0.05163244,142.66,142.63,0.04417914]
[1742900059309,0.05163244,142.66,142.65,7.0093]
[1742900060007,0.05163244,142.66,142.64,7.0095]
[1742900060411,0.05163244,142.66,142.64,7.0098]
[1742900060610,0.05163244,142.66,142.63,0.04417914]
[1742900062507,7.06063244,142.66,142.63,0.04417914]
[1742900063009,7.0093,142.65,142.63,0.04417914]
[1742900064914,7.0098,142.64,142.63,0.04417914]
[1742900069220,0.05163244,142.66,142.54,372.0145]
[1742900069221,7.013,142.58,142.54,372.0145]
[1742900069411,7.013,142.58,142.55,25.38]
[1742900069610,22.35040661,142.65,142.54,365.0]
[1742900069814,7.0134,142.57,142.54,365.0]
[1742900070222,22.35040661,142.65,142.54,365.0]
[1742900070520,7.013,142.58,142.54,365.0]
[1742900071020,0.04951609,142.57,142.55,0.04516196]
[1742900071514,0.04951609,142.57,142.55,7.05926196]
[1742900073231,0.04951609,142.57,142.55,0.04516196]
[1742900075629,7.0137,142.56,142.55,0.04516196]
[1742900080933,0.04951609,142.57,142.55,0.04516196]
[1742900081625,0.04951609,142.57,142.56,7.0137]
[1742900081831,0.04951609,142.57,142.55,0.04516196]
[1742900082233,0.04951609,142.57,142.55,7.05896196]
[1742900082533,0.04951609,142.57,142.55,0.04516196]
[1742900082733,0.04951609,142.57,142.56,7.0137]
[1742900087338,0.04951609,142.57,142.55,7.05906196]
[1742900087934,0.04951609,142.57,142.55,0.04516196]
[1742900089339,7.06271609,142.57,142.55,0.04516196]
[1742900089739,7.06281609,142.57,142.55,0.04516196]
[1742900091444,7.06281609,142.57,142.55,7.05936196]
[1742900092941,7.0137,142.56,142.55,0.04516196]
[1742900094043,7.06301609,142.57,142.55,0.04516196]
[1742900094741,7.0137,142.56,142.55,0.04516196]
[1742900094933,0.04951609,142.57,142.55,0.04516196]
[1742900095341,7.06281609,142.57,142.55,0.04516196]
[1742900096142,7.06281609,142.57,142.55,7.05926196]
[1742900097546,7.0137,142.56,142.55,0.04516196]
[1742900100445,7.06291609,142.57,142.55,7.05936196]
[1742900100646,0.04951609,142.57,142.55,7.05936196]
[1742900101240,0.04951609,142.57,142.55,0.04516196]
[1742900102045,0.04951609,142.57,142.55,7.05926196]
[1742900102445,0.04951609,142.57,142.55,0.04516196]
[1742900102641,7.06301609,142.57,142.55,0.04516196]
[1742900102840,0.04951609,142.57,142.55,0.04516196]
[1742900104651,124.0,142.56,142.55,0.04516196]
[1742900105045,131.0137,142.56,142.55,0.04516196]
[1742900106248,7.0151,142.54,142.48,25.22]
[1742900106451,8.33180661,142.58,142.48,25.22]
[1742900106751,8.33180661,142.58,142.49,7.0169]
[1742900106951,124.0,142.57,142.46,25.22]
[1742900107151,8.33180661,142.56,142.45,635.01080297]
[1742900107342,7.016,142.52,142.5,0.04769213]
[1742900107943,124.0,142.51,142.5,0.04769213]
[1742900109350,131.0162,142.51,142.5,0.04769213]
[1742900109752,124.0,142.51,142.5,0.04769213]
[1742900110855,131.0162,142.51,142.5,0.04769213]
[1742900115159,124.0,142.51,142.5,0.04769213]
[1742900116258,0.05252944,142.53,142.5,0.04769213]
[1742900116654,0.05252944,142.53,142.52,7.0157]
[1742900117657,0.05252944,142.53,142.5,0.04769213]
[1742900119560,0.05252944,142.53,142.52,7.0157]
[1742900120661,0.05252944,142.53,142.5,0.04769213]
[1742900121257,0.05252944,142.53,142.51,7.0159]
[1742900121463,0.05252944,142.53,142.5,0.04769213]
[1742900121855,0.05252944,142.53,142.51,7.0162]
[1742900123062,0.05252944,142.53,142.5,7.06409213]
[1742900123868,7.06792944,142.53,142.5,7.06409213]
[1742900124260,0.05252944,142.53,142.5,7.06409213]
[1742900126064,0.05252944,142.53,142.5,0.04769213]
[1742900126267,7.06802944,142.53,142.5,0.04769213]
[1742900127068,7.06802944,142.53,142.5,7.06419213]
[1742900129667,7.06802944,142.53,142.5,0.04769213]
[1742900133071,7.06802944,142.53,142.5,7.06429213]
[1742900135471,7.06802944,142.53,142.5,0.04769213]
[1742900135773,7.0159,142.52,142.5,0.04769213]
[1742900135970,0.05252944,142.53,142.5,7.06429213]
[1742900137477,7.06792944,142.53,142.5,7.06429213]
[1742900138079,0.05252944,142.53,142.5,7.06429213]
[1742900139383,0.05252944,142.53,142.51,7.016]
[1742900139980,0.05252944,142.53,142.52,7.0157]
[1742900141281,0.05252944,142.53,142.51,7.0159]
[1742900141777,0.05252944,142.53,142.5,0.04769213]
[1742900142381,0.05252944,142.53,142.5,7.06409213]
[1742900143386,7.06772944,142.53,142.5,7.06409213]
[1742900143693,7.06772944,142.53,142.51,7.0161]
[1742900144685,7.0157,142.52,142.5,0.04769213]
[1742900146491,0.05252944,142.53,142.5,0.04769213]
[1742900146989,0.05252944,142.53,142.51,7.0159]
[1742900147793,0.05252944,142.53,142.5,0.04769213]
[1742900147992,0.05252944,142.53,142.45,365.0]
[1742900148387,8.38433605,142.53,142.44,0.22866002]
[1742900148586,8.33180661,142.53,142.44,0.22866002]
[1742900149189,0.04665681,142.5,142.47,0.03737759]
[1742900149497,7.0171,142.49,142.47,0.03737759]
[1742900150187,7.0176,142.48,142.47,0.03737759]
[1742900151891,0.04665681,142.5,142.44,0.22866002]
[1742900151892,7.0191,142.45,142.44,0.22866002]
[1742900152890,7.0719701,142.46,142.44,0.22866002]
[1742900153089,8.33180661,142.53,142.44,0.22866002]
[1742900153288,0.0530389,142.46,142.44,0.22866002]
[1742900153593,0.05307718,142.46,142.44,7.24796002]
[1742900153897,0.05307718,142.46,142.44,0.22866002]
[1742900155889,0.05307718,142.46,142.44,7.24816002]
[1742900156090,0.05307718,142.46,142.44,0.22866002]
[1742900157991,0.05307718,142.46,142.44,7.24806002]
[1742900159792,0.05307718,142.46,142.45,7.0191]
[1742900160291,8.33180661,142.53,142.46,7.0182]
[1742900160688,7.0166,142.51,142.44,0.22866002]
[1742900160896,37.37675445,142.57,142.45,25.22]
[1742900161097,8.33180661,142.57,142.45,25.22]
[1742900161296,7.0147,142.54,142.5,7.0164]
[1742900161496,0.04722047,142.52,142.5,7.06656538]
[1742900162200,0.04722047,142.52,142.5,0.05016538]
[1742900163203,0.04722047,142.52,142.5,7.06666538]
[1742900165800,0.04722047,142.52,142.5,0.05016538]
[1742900166599,0.04722047,142.52,142.5,7.06656538]
[1742900171103,0.04722047,142.52,142.5,0.05016538]
[1742900172601,0.04722047,142.52,142.5,7.06656538]
[1742900173702,0.04722047,142.52,142.5,0.05016538]
[1742900174504,0.04722047,142.52,142.5,7.06676538]
[1742900184413,7.06292047,142.52,142.5,0.05016538]
[1742900184905,0.04722047,142.52,142.5,7.06666538]
[1742900186812,7.06292047,142.52,142.5,7.06666538]
[1742900187409,7.06292047,142.52,142.5,0.05016538]
[1742900189207,7.0162,142.51,142.5,0.05016538]
[1742900190313,7.06302047,142.52,142.5,0.05016538]
[1742900191013,7.0162,142.51,142.5,0.05016538]
[1742900200019,7.06312047,142.52,142.5,0.05016538]
[1742900200521,0.04722047,142.52,142.5,0.05016538]
[1742900201323,7.06322047,142.52,142.5,0.05016538]
[1742900202622,7.0162,142.51,142.5,0.05016538]
[1742900203521,7.0175,142.49,142.44,0.22866002]
[1742900203716,7.0175,142.49,142.46,7.0184]
[1742900204525,7.0178,142.48,142.46,7.0184]
[1742900208717,7.0686145,142.49,142.46,7.0184]
[1742900211527,7.0686145,142.49,142.45,7.0188]
[1742900212231,7.0686145,142.49,142.46,7.0185]
[1742900221948,8.38302111,142.49,142.44,0.22866002]
[1742900222147,8.33180661,142.47,142.37,374.68541153]
[1742900222451,7.0211,142.41,142.37,381.70821153]
[1742900222948,0.04667823,142.43,142.37,9.68541153]
[1742900222949,7.0219,142.4,142.37,9.68541153]
[1742900223148,8.33180661,142.45,142.37,9.68541153]
[1742900223351,1.22201738,142.53,142.37,9.68541153]
[1742900223352,0.051082,142.4,142.37,38.63080297]
[1742900223546,8.33180661,142.44,142.37,38.63080297]
[1742900223752,0.04597072,142.4,142.37,38.63080297]
[1742900224253,7.06787072,142.4,142.37,38.63080297]
[1742900224647,0.04597072,142.4,142.37,38.63080297]
[1742900227152,7.06767072,142.4,142.37,38.63080297]
[1742900227351,0.04597072,142.4,142.37,38.63080297]
[1742900227853,7.0223,142.39,142.37,38.63080297]
[1742900228054,7.0223,142.39,142.33,681.46964186]
[1742900228055,7.0223,142.39,142.33,7.0248]
[1742900229050,7.0229,142.38,142.32,7.0255]
[1742900229255,8.33180661,142.4,142.29,63.85080297]
[1742900229555,0.04957548,142.36,142.34,7.0245]
[1742900230246,0.04957548,142.36,142.33,7.0249]
[1742900230753,0.04957548,142.36,142.34,7.0245]
[1742900233162,0.04957548,142.36,142.35,7.024]
[1742900235052,8.33180661,142.45,142.38,7.0223]
[1742900235453,7.0204,142.43,142.38,7.0223]
[1742900235653,8.33180661,142.45,142.38,7.0223]
[1742900235853,8.33180661,142.44,142.38,7.0223]
[1742900236059,1.22221052,142.5,142.32,25.22]
[1742900236256,0.04989977,142.39,142.37,0.05061247]
[1742900236456,8.33180661,142.44,142.38,7.0226]
[1742900236655,0.04432554,142.39,142.38,7.0226]
[1742900236854,7.0712559,142.42,142.38,7.0226]
[1742900237051,7.0712559,142.42,142.37,7.07111663]
[1742900237259,7.0217,142.4,142.37,0.04831663]
[1742900240160,0.0503559,142.42,142.37,0.04831663]
[1742900241262,7.0226,142.38,142.37,0.04831663]
[1742900246061,7.07345243,142.39,142.37,0.04831663]
[1742900247165,7.0226,142.38,142.37,0.04831663]
[1742900249665,7.07365243,142.39,142.37,0.04831663]
[1742900250366,7.0226,142.38,142.37,0.04831663]
[1742900255771,7.07365243,142.39,142.37,0.04831663]
[1742900256475,7.0226,142.38,142.37,0.04831663]
[1742900259575,7.07365243,142.39,142.37,0.04831663]
[1742900259774,0.05135243,142.39,142.37,0.04831663]
[1742900260075,0.05135243,142.39,142.38,7.0226]
[1742900269889,8.33180661,142.45,142.37,0.04831663]
[1742900269890,29.04494784,142.47,142.41,7.0208]
[1742900270094,7.0195,142.45,142.35,25.22]
[1742900270293,29.04494784,142.47,142.35,25.22]
[1742900270587,29.04494784,142.47,142.38,25.22]
[1742900270994,0.04560205,142.44,142.41,25.27209791]
[1742900271489,0.04560205,142.44,142.42,7.0203]
[1742900274288,0.04560205,142.44,142.43,7.0201]
[1742900275495,0.04560205,142.44,142.42,7.0204]
[1742900276696,0.04560205,142.44,142.41,0.05209791]
[1742900277695,7.06520205,142.44,142.41,0.05209791]
[1742900278901,7.0201,142.43,142.41,0.05209791]
[1742900280602,7.0206,142.42,142.41,0.05209791]
[1742900282201,7.06560205,142.44,142.41,7.07319791]
[1742900282997,0.04560205,142.44,142.42,7.0206]
[1742900283502,0.04560205,142.44,142.43,7.0201]
[1742900288008,0.04560205,142.44,142.41,0.05209791]
[1742900288009,0.04560205,142.44,142.42,7.0204]
[1742900288508,7.06550205,142.44,142.41,7.07289791]
[1742900289107,7.06550205,142.44,142.41,0.05209791]
[1742900290601,7.0201,142.43,142.41,7.07309791]
[1742900290906,0.04560205,142.44,142.41,7.07309791]
[1742900291105,7.06550205,142.44,142.41,7.07309791]
[1742900293208,7.0202,142.43,142.41,0.05209791]
[1742900294006,7.0202,142.43,142.41,7.07319791]
[1742900295110,7.0202,142.43,142.41,0.05209791]
[1742900295305,7.0206,142.42,142.41,0.05209791]
[1742900297410,7.0202,142.43,142.41,0.05209791]
[1742900298207,7.0202,142.43,142.41,7.07289791]
[1742900300119,7.06550205,142.44,142.41,7.07289791]
[1742900304626,0.04560205,142.44,142.41,0.05209791]
[1742900305319,7.0206,142.42,142.41,0.05209791]
[1742900310434,0.04560205,142.44,142.41,0.05209791]
[1742900311232,7.0204,142.43,142.41,0.05209791]
[1742900311432,0.04560205,142.44,142.41,0.05209791]
[1742900311833,7.06540205,142.44,142.41,7.07309791]
[1742900312034,0.04560205,142.44,142.41,0.05209791]
[1742900312328,0.04560205,142.44,142.42,7.0204]
[1742900313337,0.04560205,142.44,142.43,7.0201]
[1742900322138,7.0174,142.49,142.46,7.0185]
[1742900322443,8.33180661,142.53,142.42,25.2]
[1742900322642,7.017,142.5,142.42,25.2]
[1742900322939,8.33180661,142.53,142.46,7.0182]
[1742900323328,0.04875282,142.51,142.48,0.04967582]
[1742900323843,7.0171,142.49,142.48,0.04967582]
[1742900326439,7.0169,142.5,142.48,0.04967582]
[1742900326741,0.04875282,142.51,142.48,0.04967582]
[1742900327145,7.06535282,142.51,142.48,0.04967582]
[1742900327846,7.0167,142.5,142.48,0.04967582]
[1742900333351,7.06525282,142.51,142.48,0.04967582]
[1742900333550,0.04875282,142.51,142.48,0.04967582]
[1742900334351,0.04875282,142.51,142.5,7.0167]
[1742900335347,0.04875282,142.51,142.49,7.0171]
[1742900335553,0.04875282,142.51,142.48,0.04967582]
[1742900335949,7.0169,142.5,142.48,0.04967582]
[1742900337556,7.0171,142.49,142.48,0.04967582]
[1742900338248,0.04875282,142.51,142.48,0.04967582]
[1742900338650,7.0171,142.49,142.48,0.04967582]
[1742900344358,0.04875282,142.51,142.48,0.04967582]
[1742900345150,0.04875282,142.51,142.48,7.06707582]